fUSD/lending_fUSD_20240420
["ID","MTS","AMOUNT","RATE_DAILY","PERIOD"]
[323012138,1713587453835,-1795.5,0.00015342,2]
[323012139,1713587453844,-2721.98,0.00015342,2]
[323012140,1713587453854,-500.0,0.00015342,2]
[323012141,1713587453863,-500.0,0.00015342,2]
[323012142,1713587453873,-500.0,0.00015342,2]
[323012143,1713587453883,-500.0,0.00015342,2]
[323012144,1713587453893,-885.37,0.00015342,2]
[323012145,1713587453903,-2926.31,0.00015342,2]
[323012146,1713587453912,-666.56,0.00015342,2]
[323012147,1713587453921,-2022.97,0.00015342,2]
[323012148,1713587453930,-1534.63,0.00015342,2]
[323012149,1713587453940,-3244.44,0.00015342,2]
[323012150,1713587453949,-1156.38,0.00015342,2]
[323012151,1713587453958,-500.0,0.00015342,2]
[323012152,1713587453968,-544.73,0.00015342,2]
[323012153,1713587453978,-2203.23,0.00015342,2]
[323012154,1713587453987,-793.6,0.00015342,2]
[323012155,1713587453996,-943.09,0.00015342,2]
[323012156,1713587454005,-500.0,0.00015342,2]
[323012157,1713587454015,-5333.25,0.00015342,2]
[323012158,1713587454025,-889.65,0.00015342,2]
[323012159,1713587454035,-500.0,0.00015342,2]
[323012160,1713587454044,-2815.96,0.00015342,2]
[323012161,1713587454053,-568.37,0.00015342,2]
[323012162,1713587454063,-10049.11,0.00015342,2]
[323012163,1713587454074,-500.0,0.00015342,2]
[323012164,1713587454083,-1150.64,0.00015342,2]
[323012165,1713587454093,-576.56,0.00015342,2]
[323012166,1713587454102,-500.0,0.00015342,2]
[323012167,1713587454111,-500.0,0.00015342,2]
[323012168,1713587454121,-500.0,0.00015342,2]
[323012169,1713587454130,-2000.46,0.00015342,2]
[323012170,1713587454140,-1332.96,0.00015342,2]
[323012171,1713587454149,-876.88,0.00015342,2]
[323012172,1713587454158,-1482.41,0.00015342,2]
[323012173,1713587454167,-500.0,0.00015342,2]
[323012174,1713587454177,-500.0,0.00015342,2]
[323012175,1713587454186,-607.24,0.00015342,2]
[323012176,1713587454196,-581.6,0.00015342,2]
[323012177,1713587454205,-5583.23,0.00015342,2]
[323012178,1713587454214,-585.05,0.00015342,2]
[323012179,1713587454223,-2162.13,0.00015342,2]
[323012180,1713587454233,-500.0,0.00015342,2]
[323012181,1713587454242,-724.59,0.00015342,2]
[323012182,1713587454251,-861.95,0.00015342,2]
[323012183,1713587454261,-500.0,0.00015342,2]
[323012184,1713587454270,-1022.14,0.00015342,2]
[323012185,1713587454280,-623.05,0.00015342,2]
[323012186,1713587454289,-500.0,0.00015342,2]
[323012187,1713587454298,-576.29,0.00015342,2]
[323012188,1713587454308,-500.0,0.00015342,2]
[323012189,1713587454318,-500.0,0.00015342,2]
[323012190,1713587454327,-500.0,0.00015342,2]
[323012191,1713587454336,-792.61,0.00015342,2]
[323012192,1713587454345,-151.0,0.00015342,2]
[323012193,1713587454354,-500.0,0.00015342,2]
[323012194,1713587454364,-1738.37,0.00015342,2]
[323012195,1713587454373,-569.79,0.00015342,2]
[323012196,1713587454382,-739.94,0.00015342,2]
[323012197,1713587454392,-500.0,0.00015342,2]
[323012198,1713587454401,-1173.85,0.00015342,2]
[323012199,1713587454410,-573.45,0.00015342,2]
[323012200,1713587454420,-818.01,0.00015342,2]
[323012201,1713587454429,-151.0,0.00015342,2]
[323012202,1713587454438,-1546.41,0.00015342,2]
[323012203,1713587454447,-500.0,0.00015342,2]
[323012204,1713587454457,-500.0,0.00015342,2]
[323012205,1713587454466,-2061.48,0.00015342,2]
[323012206,1713587454475,-1459.35,0.00015342,2]
[323012207,1713587454484,-3675.79,0.00015342,2]
[323012208,1713587454493,-1142.36,0.00015342,2]
[323012209,1713587454502,-698.45,0.00015342,2]
[323012210,1713587454512,-500.0,0.00015342,2]
[323012211,1713587454521,-1183.98,0.00015342,2]
[323012212,1713587454530,-500.0,0.00015342,2]
[323012213,1713587454539,-1416.3,0.00015342,2]
[323012214,1713587454549,-500.0,0.00015342,2]
[323012215,1713587454558,-3892.61,0.00015342,2]
[323012216,1713587454567,-961.22,0.00015342,2]
[323012217,1713587454577,-543.91,0.00015342,2]
[323012218,1713587454586,-500.0,0.00015342,2]
[323012219,1713587454595,-500.0,0.00015342,2]
[323012220,1713587454605,-500.0,0.00015342,2]
[323012221,1713587454614,-1526.01,0.00015342,2]
[323012222,1713587454623,-500.0,0.00015342,2]
[323012223,1713587454632,-805.06,0.00015342,2]
[323012224,1713587454641,-2700.01,0.00015342,2]
[323012225,1713587454651,-500.0,0.00015342,2]
[323012226,1713587454660,-500.0,0.00015342,2]
[323012227,1713587454670,-1101.39,0.00015342,2]
[323012228,1713587454679,-13124.8,0.00015342,2]
[323012229,1713587454689,-855.22,0.00015342,2]
[323012230,1713587454702,-2543.71,0.00015342,2]
[323012231,1713587454712,-1737.76,0.00015342,2]
[323012232,1713587454721,-2224.41,0.00015342,2]
[323012233,1713587454731,-500.0,0.00015342,2]
[323012234,1713587454740,-1499.88,0.00015342,2]
[323012235,1713587454749,-816.48,0.00015342,2]
[323012236,1713587454758,-500.0,0.00015342,2]
[323012237,1713587454769,-2262.14,0.00015342,2]
[323012238,1713587454779,-1222.46,0.00015342,2]
[323012239,1713587454788,-2139.91,0.00015342,2]
[323012240,1713587454798,-736.06,0.00015342,2]
[323012241,1713587454807,-2892.81,0.00015342,2]
[323012242,1713587454816,-500.0,0.00015342,2]
[323012243,1713587454825,-500.0,0.00015342,2]
[323012244,1713587454834,-1647.58,0.00015342,2]
[323012245,1713587454844,-1431.16,0.00015342,2]
[323012246,1713587454853,-500.0,0.00015342,2]
[323012247,1713587454862,-900.42,0.00015342,2]
[323012248,1713587454871,-760.46,0.00015342,2]
[323012249,1713587454880,-669.94,0.00015342,2]
[323012250,1713587454889,-500.0,0.00015342,2]
[323012251,1713587454898,-751.44,0.00015342,2]
[323012252,1713587454907,-718.58,0.00015342,2]
[323012253,1713587454917,-2295.53,0.00015342,2]
[323012254,1713587454926,-2911.11,0.00015342,2]
[323012255,1713587454935,-760.86,0.00015342,2]
[323012256,1713587454944,-505.62,0.00015342,2]
[323012257,1713587454954,-500.0,0.00015342,2]
[323012258,1713587454963,-1310.51,0.00015342,2]
[323012259,1713587454972,-1405.38,0.00015342,2]
[323012260,1713587454982,-500.0,0.00015342,2]
[323012261,1713587454991,-1785.69,0.00015342,2]
[323012262,1713587455000,-711.28,0.00015342,2]
[323012263,1713587455009,-500.0,0.00015342,2]
[323012264,1713587455019,-787.55,0.00015342,2]
[323012265,1713587455028,-500.0,0.00015342,2]
[323012266,1713587455037,-1846.17,0.00015342,2]
[323012267,1713587455046,-1741.33,0.00015342,2]
[323012268,1713587455055,-500.0,0.00015342,2]
[323012269,1713587455064,-1141.03,0.00015342,2]
[323012270,1713587455074,-592.9,0.00015342,2]
[323012271,1713587455084,-2110.61,0.00015342,2]
[323012272,1713587455092,-500.0,0.00015342,2]
[323012273,1713587455101,-1210.93,0.00015342,2]
[323012274,1713587455111,-1273.58,0.00015342,2]
[323012275,1713587455120,-901.35,0.00015342,2]
[323012276,1713587455129,-500.0,0.00015342,2]
[323012277,1713587455139,-500.0,0.00015342,2]
[323012278,1713587455148,-1402.0,0.00015342,2]
[323012279,1713587455157,-500.0,0.00015342,2]
[323012280,1713587455166,-1106.04,0.00015342,2]
[323012281,1713587455176,-1486.93,0.00015342,2]
[323012282,1713587455185,-500.0,0.00015342,2]
[323012283,1713587455194,-500.0,0.00015342,2]
[323012284,1713587455204,-573.74,0.00015342,2]
[323012285,1713587455213,-789.63,0.00015342,2]
[323012286,1713587455222,-1564.55,0.00015342,2]
[323012287,1713587455232,-500.0,0.00015342,2]
[323012288,1713587455241,-500.0,0.00015342,2]
[323012289,1713587455250,-675.27,0.00015342,2]
[323012290,1713587455260,-3895.74,0.00015342,2]
[323012291,1713587455269,-500.0,0.00015342,2]
[323012292,1713587455278,-790.52,0.00015342,2]
[323012293,1713587455287,-500.0,0.00015342,2]
[323012294,1713587455296,-500.0,0.00015342,2]
[323012295,1713587455305,-500.0,0.00015342,2]
[323012296,1713587455314,-500.0,0.00015342,2]
[323012297,1713587455325,-2112.95,0.00015342,2]
[323012298,1713587455335,-2364.44,0.00015342,2]
[323012299,1713587455344,-748.48,0.00015342,2]
[323012300,1713587455353,-1435.58,0.00015342,2]
[323012301,1713587455362,-556.51,0.00015342,2]
[323012302,1713587455371,-523.09,0.00015342,2]
[323012303,1713587455380,-1656.08,0.00015342,2]
[323012304,1713587455389,-500.0,0.00015342,2]
[323012305,1713587455398,-655.53,0.00015342,2]
[323012306,1713587455408,-500.0,0.00015342,2]
[323012307,1713587455417,-4315.94,0.00015342,2]
[323012308,1713587455429,-672.5,0.00015342,2]
[323012309,1713587455439,-765.98,0.00015342,2]
[323012310,1713587455448,-500.0,0.00015342,2]
[323012311,1713587455457,-575.43,0.00015342,2]
[323012312,1713587455466,-500.0,0.00015342,2]
[323012313,1713587455475,-500.0,0.00015342,2]
[323012314,1713587455484,-1968.17,0.00015342,2]
[323012315,1713587455493,-773.4,0.00015342,2]
[323012316,1713587455502,-500.0,0.00015342,2]
[323012317,1713587455511,-1526.66,0.00015342,2]
[323012318,1713587455521,-500.0,0.00015342,2]
[323012319,1713587455530,-1041.64,0.00015342,2]
[323012320,1713587455538,-1427.26,0.00015342,2]
[323012321,1713587455547,-6100.04,0.00015342,2]
[323012322,1713587455556,-2016.58,0.00015342,2]
[323012323,1713587455565,-634.05,0.00015342,2]
[323012324,1713587455576,-703.98,0.00015342,2]
[323012325,1713587455585,-500.0,0.00015342,2]
[323012326,1713587455595,-3648.05,0.00015342,2]
[323012327,1713587455604,-686.48,0.00015342,2]
[323012328,1713587455613,-500.0,0.00015342,2]
[323012329,1713587455622,-500.0,0.00015342,2]
[323012330,1713587455631,-4851.48,0.00015342,2]
[323012331,1713587455640,-4944.58,0.00015342,2]
[323012332,1713587455650,-4148.44,0.00015342,2]
[323012333,1713587455659,-500.0,0.00015342,2]
[323012334,1713587455668,-244.33,0.00015352,2]
[323012335,1713587455677,-150.0,0.00015352,2]
[323012336,1713587455686,-150.0,0.00015352,2]
[323012337,1713587455699,-150.0,0.00015352,2]
[323012338,1713587455708,-170.80495529,0.00015367,2]
[323012339,1713587455718,-1000.0,0.000154,2]
[323012340,1713587455727,-1000.0,0.00015479,2]
[323012341,1713587455739,-1000.0,0.00015479,2]
[323012342,1713587455747,-1000.0,0.00015479,2]
[323012343,1713587455758,-1000.0,0.00015479,2]
[323012344,1713587455768,-1014.0,0.00015479,2]
[323012345,1713587455778,-10893.35922748,0.00015484,2]
[323012346,1713587455788,-1000.0,0.00015491,2]
[323012347,1713587455798,-500.0,0.00015491,2]
[323012348,1713587455808,-150.0,0.000155,2]
[323012349,1713587455819,-1008.0,0.000155,2]
[323012350,1713587455829,-170.80495529,0.00015501,2]
[323012351,1713587455839,-580.0,0.00015512,2]
[323012352,1713587455849,-193.29446844,0.00015516,2]
[323012353,1713587455859,-1343.39154278,0.00015516,2]
[323012354,1713587455869,-173.30942473,0.00015516,2]
[323012355,1713587455880,-300.64075606,0.00015522,2]
[323012356,1713587455889,-200.0,0.00015574,2]
[323012357,1713587455899,-170848.1173746,0.00015593,2]
[323012358,1713587455910,-24059.1650405,0.00015596,2]
[323012359,1713587455919,-7204.6952713,0.00015596,2]
[323012360,1713587455928,-151.0,0.00015596,2]
[323012361,1713587455939,-225.76,0.00015596,2]
[323012362,1713587455949,-482.0,0.000156,2]
[323012363,1713587455959,-1000.0,0.000156,2]
[323012364,1713587455969,-3000.0,0.00015604,2]
[323012365,1713587455978,-378.90549971,0.00015606,2]
[323012366,1713587455987,-340.6255,0.00015614,2]
[323012367,1713587455997,-1186.20667968,0.00015614,2]
[323012368,1713587456006,-5842.87653255,0.00015615,2]
[323012369,1713587456016,-150.01,0.00015615,2]
[323012370,1713587456025,-153.11846306,0.00015616,2]
[323012371,1713587456034,-500.0,0.00015616,2]
[323012372,1713587456044,-579.23,0.00015616,2]
[323012373,1713587456053,-653.79,0.00015616,2]
[323012374,1713587456064,-500.0,0.00015616,2]
[323012375,1713587456075,-500.0,0.00015616,2]
[323012376,1713587456087,-626.29,0.00015616,2]
[323012377,1713587456096,-500.0,0.00015616,2]
[323012378,1713587456107,-749.52,0.00015616,2]
[323012379,1713587456117,-500.0,0.00015616,2]
[323012380,1713587456128,-1197.38,0.00015616,2]
[323012381,1713587456137,-500.0,0.00015616,2]
[323012382,1713587456147,-870.47,0.00015616,2]
[323012383,1713587456158,-515.67,0.00015616,2]
[323012384,1713587456167,-500.0,0.00015616,2]
[323012385,1713587456177,-500.0,0.00015616,2]
[323012386,1713587456186,-500.0,0.00015616,2]
[323012387,1713587456195,-909.57,0.00015616,2]
[323012388,1713587456204,-507.78,0.00015616,2]
[323012389,1713587456212,-536.28,0.00015616,2]
[323012390,1713587456222,-500.0,0.00015616,2]
[323012391,1713587456231,-500.0,0.00015616,2]
[323012392,1713587456241,-500.0,0.00015616,2]
[323012393,1713587456250,-700.18,0.00015616,2]
[323012394,1713587456259,-572.4,0.00015616,2]
[323012395,1713587456268,-500.0,0.00015616,2]
[323012396,1713587456277,-500.0,0.00015616,2]
[323012397,1713587456286,-500.0,0.00015616,2]
[323012398,1713587456296,-500.0,0.00015616,2]
[323012399,1713587456305,-500.0,0.00015616,2]
[323012400,1713587456314,-500.0,0.00015616,2]
[323012401,1713587456326,-500.0,0.00015616,2]
[323012402,1713587456335,-500.0,0.00015616,2]
[323012403,1713587456344,-500.0,0.00015616,2]
[323012404,1713587456353,-500.0,0.00015616,2]
[323012405,1713587456362,-500.0,0.00015616,2]
[323012406,1713587456371,-500.0,0.00015616,2]
[323012407,1713587456380,-565.84342337,0.00015616,2]
[323012408,1713587456389,-583.4,0.00015616,2]
[323012409,1713587456398,-500.0,0.00015616,2]
[323012410,1713587456406,-424.77126468,0.00015616,2]
[323012411,1713587456415,-802.86,0.00015616,2]
[323012412,1713587456425,-500.0,0.00015616,2]
[323012413,1713587456433,-500.0,0.00015616,2]
[323012414,1713587456442,-507.97,0.00015616,2]
[323012415,1713587456452,-500.0,0.00015616,2]
[323012416,1713587456461,-567.98,0.00015616,2]
[323012417,1713587456470,-500.0,0.00015616,2]
[323012418,1713587456479,-701.1,0.00015616,2]
[323012419,1713587456489,-500.0,0.00015616,2]
[323012420,1713587456498,-543.4647276,0.00015616,2]
[323012421,1713587456508,-500.0,0.00015616,2]
[323012422,1713587456518,-500.0,0.00015616,2]
[323012423,1713587456527,-500.0,0.00015616,2]
[323012424,1713587456536,-500.0,0.00015616,2]
[323012425,1713587456545,-655.6,0.00015616,2]
[323012426,1713587456554,-500.0,0.00015616,2]
[323012427,1713587456563,-500.0,0.00015616,2]
[323012428,1713587456574,-500.0,0.00015616,2]
[323012429,1713587456583,-500.0,0.00015616,2]
[323012430,1713587456592,-500.0,0.00015616,2]
[323012431,1713587456601,-500.0,0.00015616,2]
[323012432,1713587456610,-500.0,0.00015616,2]
[323012433,1713587456620,-548.54,0.00015616,2]
[323012434,1713587456629,-500.0,0.00015616,2]
[323012435,1713587456638,-516.97,0.00015616,2]
[323012436,1713587456647,-500.0,0.00015616,2]
[323012437,1713587456656,-782.76,0.00015616,2]
[323012438,1713587456666,-507.4,0.00015616,2]
[323012439,1713587456676,-500.0,0.00015616,2]
[323012440,1713587456688,-500.0,0.00015616,2]
[323012441,1713587456701,-500.0,0.00015616,2]
[323012442,1713587456711,-500.0,0.00015616,2]
[323012443,1713587456722,-500.0,0.00015616,2]
[323012444,1713587456731,-500.0,0.00015616,2]
[323012445,1713587456740,-500.0,0.00015616,2]
[323012446,1713587456749,-500.0,0.00015616,2]
[323012447,1713587456758,-500.0,0.00015616,2]
[323012448,1713587456768,-500.0,0.00015616,2]
[323012449,1713587456778,-500.0,0.00015616,2]
[323012450,1713587456788,-554.49,0.00015616,2]
[323012451,1713587456797,-500.0,0.00015616,2]
[323012452,1713587456806,-601.34,0.00015616,2]
[323012453,1713587456817,-500.0,0.00015616,2]
[323012454,1713587456829,-500.0,0.00015616,2]
[323012455,1713587456838,-500.0,0.00015616,2]
[323012456,1713587456847,-500.0,0.00015616,2]
[323012457,1713587456857,-287.19258562,0.00015616,2]
[323012458,1713587456867,-500.0,0.00015616,2]
[323012459,1713587456876,-500.0,0.00015616,2]
[323012460,1713587456884,-500.0,0.00015616,2]
[323012461,1713587456893,-500.0,0.00015616,2]
[323012462,1713587456903,-500.0,0.00015616,2]
[323012463,1713587456912,-500.0,0.00015616,2]
[323012464,1713587456921,-500.0,0.00015616,2]
[323012465,1713587456931,-500.0,0.00015616,2]
[323012466,1713587456940,-500.0,0.00015616,2]
[323012467,1713587456949,-500.0,0.00015616,2]
[323012468,1713587456959,-500.0,0.00015616,2]
[323012469,1713587456968,-500.0,0.00015616,2]
[323012470,1713587456978,-686.06,0.00015616,2]
[323012471,1713587456988,-500.0,0.00015616,2]
[323012472,1713587456997,-546.22,0.00015616,2]
[323012473,1713587457007,-500.0,0.00015616,2]
[323012474,1713587457017,-500.0,0.00015616,2]
[323012475,1713587457031,-500.0,0.00015616,2]
[323012476,1713587457047,-500.0,0.00015616,2]
[323012477,1713587457056,-500.0,0.00015616,2]
[323012478,1713587457067,-538.81,0.00015616,2]
[323012479,1713587457077,-500.0,0.00015616,2]
[323012480,1713587457087,-500.0,0.00015616,2]
[323012481,1713587457097,-500.0,0.00015616,2]
[323012482,1713587457107,-663.89,0.00015616,2]
[323012483,1713587457118,-500.0,0.00015616,2]
[323012484,1713587457131,-500.0,0.00015616,2]
[323012485,1713587457144,-500.0,0.00015616,2]
[323012486,1713587457156,-451.89018806,0.00015616,2]
[323012487,1713587457168,-500.0,0.00015616,2]
[323012488,1713587457180,-500.0,0.00015616,2]
[323012489,1713587457190,-631.89,0.00015616,2]
[323012490,1713587457202,-500.0,0.00015616,2]
[323012491,1713587457213,-500.0,0.00015616,2]
[323012492,1713587457225,-585.77,0.00015616,2]
[323012493,1713587457237,-500.0,0.00015616,2]
[323012494,1713587457250,-506.79,0.00015616,2]
[323012495,1713587457262,-500.0,0.00015616,2]
[323012496,1713587457281,-500.0,0.00015616,2]
[323012497,1713587457301,-500.0,0.00015616,2]
[323012498,1713587457314,-985.96,0.00015616,2]
[323012499,1713587457326,-500.0,0.00015616,2]
[323012500,1713587457336,-503.55,0.00015616,2]
[323012501,1713587457348,-538.87,0.00015616,2]
[323012502,1713587457360,-500.0,0.00015616,2]
[323012503,1713587457372,-1064.57,0.00015616,2]
[323012504,1713587457383,-297.94178139,0.00015616,2]
[323012505,1713587457395,-403.42832133,0.00015616,2]
[323012506,1713587457408,-500.0,0.00015616,2]
[323012507,1713587457421,-500.0,0.00015616,2]
[323012508,1713587457436,-500.0,0.00015616,2]
[323012509,1713587457449,-500.0,0.00015616,2]
[323012510,1713587457462,-1011.64,0.00015616,2]
[323012511,1713587457472,-500.0,0.00015616,2]
[323012512,1713587457483,-500.0,0.00015616,2]
[323012513,1713587457496,-500.0,0.00015616,2]
[323012514,1713587457509,-522.09,0.00015616,2]
[323012515,1713587457521,-500.0,0.00015616,2]
[323012516,1713587457533,-500.0,0.00015616,2]
[323012517,1713587457545,-500.0,0.00015616,2]
[323012518,1713587457556,-666.88,0.00015616,2]
[323012519,1713587457567,-969.29,0.00015616,2]
[323012520,1713587457581,-807.39,0.00015616,2]
[323012521,1713587457591,-500.0,0.00015616,2]
[323012522,1713587457603,-500.0,0.00015616,2]
[323012523,1713587457617,-500.0,0.00015616,2]
[323012524,1713587457627,-500.0,0.00015616,2]
[323012525,1713587457638,-500.0,0.00015616,2]
[323012526,1713587457652,-532.15,0.00015616,2]
[323012527,1713587457682,-571.79,0.00015616,2]
[323012528,1713587457705,-500.0,0.00015616,2]
[323012529,1713587457717,-500.0,0.00015616,2]
[323012530,1713587457731,-517.43,0.00015616,2]
[323012531,1713587457744,-500.0,0.00015616,2]
[323012532,1713587457756,-822.16,0.00015616,2]
[323012533,1713587457766,-500.0,0.00015616,2]
[323012534,1713587457781,-596.75,0.00015616,2]
[323012535,1713587457792,-893.28,0.00015616,2]
[323012536,1713587457802,-500.0,0.00015616,2]
[323012537,1713587457813,-500.0,0.00015616,2]
[323012538,1713587457827,-500.0,0.00015616,2]
[323012539,1713587457838,-748.83,0.00015616,2]
[323012540,1713587457850,-783.58,0.00015616,2]
[323012541,1713587457864,-500.0,0.00015616,2]
[323012542,1713587457876,-1011.59,0.00015616,2]
[323012543,1713587457888,-500.0,0.00015616,2]
[323012544,1713587457899,-500.0,0.00015616,2]
[323012545,1713587457910,-1622.03,0.00015616,2]
[323012546,1713587457921,-500.0,0.00015616,2]
[323012547,1713587457933,-500.0,0.00015616,2]
[323012548,1713587457945,-652.66,0.00015616,2]
[323012549,1713587457956,-500.0,0.00015616,2]
[323012550,1713587457967,-623.28,0.00015616,2]
[323012551,1713587457978,-500.0,0.00015616,2]
[323012552,1713587457989,-500.0,0.00015616,2]
[323012553,1713587458001,-285.33,0.00015616,2]
[323012554,1713587458012,-500.0,0.00015616,2]
[323012555,1713587458023,-686.08,0.00015616,2]
[323012556,1713587458034,-800.99,0.00015616,2]
[323012557,1713587458046,-572.29,0.00015616,2]
[323012558,1713587458057,-592.33,0.00015616,2]
[323012559,1713587458068,-810.09,0.00015616,2]
[323012560,1713587458081,-500.0,0.00015616,2]
[323012561,1713587458093,-807.87,0.00015616,2]
[323012562,1713587458105,-500.0,0.00015616,2]
[323012563,1713587458117,-500.0,0.00015616,2]
[323012564,1713587458129,-854.14,0.00015616,2]
[323012565,1713587458140,-860.48,0.00015616,2]
[323012566,1713587458152,-500.0,0.00015616,2]
[323012567,1713587458163,-500.0,0.00015616,2]
[323012568,1713587458175,-675.47,0.00015616,2]
[323012569,1713587458187,-990.63,0.00015616,2]
[323012570,1713587458199,-500.0,0.00015616,2]
[323012571,1713587458210,-500.0,0.00015616,2]
[323012572,1713587458222,-1064.43,0.00015616,2]
[323012573,1713587458240,-500.0,0.00015616,2]
[323012574,1713587458253,-500.0,0.00015616,2]
[323012575,1713587458265,-547.25,0.00015616,2]
[323012576,1713587458278,-500.0,0.00015616,2]
[323012577,1713587458290,-500.0,0.00015616,2]
[323012578,1713587458300,-828.99,0.00015616,2]
[323012579,1713587458314,-500.0,0.00015616,2]
[323012580,1713587458326,-500.0,0.00015616,2]
[323012581,1713587458338,-500.0,0.00015616,2]
[323012582,1713587458349,-500.0,0.00015616,2]
[323012583,1713587458360,-614.12720417,0.00015616,2]
[323012584,1713587458373,-870.48,0.00015616,2]
[323012585,1713587458386,-500.0,0.00015616,2]
[323012586,1713587458398,-500.0,0.00015616,2]
[323012587,1713587458409,-649.0,0.00015616,2]
[323012588,1713587458420,-500.0,0.00015616,2]
[323012589,1713587458432,-824.72,0.00015616,2]
[323012590,1713587458445,-618.63,0.00015616,2]
[323012591,1713587458456,-576.73,0.00015616,2]
[323012592,1713587458468,-500.0,0.00015616,2]
[323012593,1713587458480,-500.0,0.00015616,2]
[323012594,1713587458492,-1041.02,0.00015616,2]
[323012595,1713587458504,-500.0,0.00015616,2]
[323012596,1713587458515,-723.13,0.00015616,2]
[323012597,1713587458527,-500.0,0.00015616,2]
[323012598,1713587458539,-500.0,0.00015616,2]
[323012599,1713587458551,-1205.92,0.00015616,2]
[323012600,1713587458562,-500.0,0.00015616,2]
[323012601,1713587458575,-500.0,0.00015616,2]
[323012602,1713587458587,-548.22,0.00015616,2]
[323012603,1713587458601,-574.04,0.00015616,2]
[323012604,1713587458613,-500.0,0.00015616,2]
[323012605,1713587458624,-500.0,0.00015616,2]
[323012606,1713587458636,-500.0,0.00015616,2]
[323012607,1713587458648,-500.0,0.00015616,2]
[323012608,1713587458660,-664.58,0.00015616,2]
[323012609,1713587458672,-500.0,0.00015616,2]
[323012610,1713587458684,-500.0,0.00015616,2]
[323012611,1713587458696,-500.0,0.00015616,2]
[323012612,1713587458710,-1345.57,0.00015616,2]
[323012613,1713587458722,-1039.79,0.00015616,2]
[323012614,1713587458736,-894.43,0.00015616,2]
[323012615,1713587458748,-500.0,0.00015616,2]
[323012616,1713587458760,-500.0,0.00015616,2]
[323012617,1713587458774,-500.0,0.00015616,2]
[323012618,1713587458786,-555.03,0.00015616,2]
[323012619,1713587458797,-787.37,0.00015616,2]
[323012620,1713587458808,-809.17,0.00015616,2]
[323012621,1713587458820,-567.63,0.00015616,2]
[323012622,1713587458833,-1534.21,0.00015616,2]
[323012623,1713587458845,-552.08,0.00015616,2]
[323012624,1713587458858,-500.0,0.00015616,2]
[323012625,1713587458870,-500.0,0.00015616,2]
[323012626,1713587458882,-566.95,0.00015616,2]
[323012627,1713587458895,-501.19,0.00015616,2]
[323012628,1713587458906,-500.0,0.00015616,2]
[323012629,1713587458918,-500.0,0.00015616,2]
[323012630,1713587458930,-500.0,0.00015616,2]
[323012631,1713587458940,-946.7,0.00015616,2]
[323012632,1713587458952,-859.67,0.00015616,2]
[323012633,1713587458965,-641.55,0.00015616,2]
[323012634,1713587458977,-500.0,0.00015616,2]
[323012635,1713587458989,-500.0,0.00015616,2]
[323012636,1713587459001,-777.48,0.00015616,2]
[323012637,1713587459012,-1694.84,0.00015616,2]